bitfinex-derivatives/quotes_ETHF0:USTF0_20250929
["timestamp","ask_amount","ask_price","bid_price","bid_amount"]
[1759153673252,0.3777,4158.5,4158.0,0.00270774]
[1759153673454,0.81038,4158.1,4158.0,0.00270774]
[1759153673851,5.81038,4158.1,4158.0,0.00270774]
[1759153674162,5.81038,4158.1,4158.0,7.74e-06]
[1759153674362,0.43284,4156.6,4156.5,0.83325012]
[1759153674558,0.43284,4156.6,4156.0,0.83325012]
[1759153674559,0.43288,4156.2,4156.0,0.83325012]
[1759153674752,0.43288,4156.2,4156.1,0.292]
[1759153674953,0.43288,4156.2,4156.0,0.83325012]
[1759153675155,0.43295,4155.6,4155.4,1.24585012]
[1759153675356,0.43474804,4155.6,4155.5,0.292]
[1759153675661,0.3778,4155.5,4155.4,0.02624353]
[1759153676159,0.3778,4155.5,4154.4,0.00842]
[1759153676160,1.08242,4155.4,4154.6,0.83325012]
[1759153676350,0.3778,4155.2,4154.7,0.292]
[1759153676550,0.43303,4154.8,4154.7,0.292]
[1759153676752,0.81086,4154.5,4154.4,0.00842]
[1759153676948,0.81086,4154.5,4154.4,0.30042]
[1759153677151,0.43297,4155.3,4154.7,0.43303]
[1759153677352,0.43303,4154.8,4154.5,0.3886]
[1759153677553,0.43304,4154.7,4154.6,0.291]
[1759153677754,1.08417804,4155.6,4154.4,0.01097355]
[1759153677755,0.43306,4154.5,4154.4,0.01097355]
[1759153677954,0.81086,4154.5,4154.4,0.01097355]
[1759153678753,0.96496,4154.5,4154.4,0.01097355]
[1759153679264,5.96496,4154.5,4154.4,0.01097355]
[1759153679467,5.5319,4154.5,4154.1,0.024]
[1759153679766,0.81089,4154.2,4154.1,0.024]
[1759153679962,1.08279,4154.0,4152.5,0.83325012]
[1759153680157,1.08286,4153.7,4152.5,0.234]
[1759153680351,0.1541,4153.8,4152.5,0.234]
[1759153680352,0.3778,4153.6,4152.5,0.234]
[1759153680560,0.3778,4153.6,4152.5,0.0024318]
[1759153680561,0.81106,4152.6,4152.5,0.0024318]
[1759153680762,0.4359032,4152.6,4152.5,0.0024318]
[1759153680952,0.0026432,4152.6,4152.5,0.0024318]
[1759153681152,0.3804432,4152.6,4152.5,0.0024318]
[1759153681559,0.0026432,4152.6,4152.5,0.3910318]
[1759153681858,0.0026432,4152.6,4152.5,5.0024318]
[1759153682063,0.0026432,4152.6,4152.5,5.3910318]
[1759153682363,0.43314,4153.8,4153.2,0.43319]
[1759153682555,0.43318,4153.4,4153.2,0.29]
[1759153682860,0.43313,4153.9,4153.3,0.3886]
[1759153683161,0.1541,4155.2,4154.4,0.3886]
[1759153683352,0.1541,4155.2,4153.8,0.43313]
[1759153683353,0.43309,4154.2,4153.8,0.43313]
[1759153683553,0.43309,4154.2,4153.9,0.29]
[1759153683759,0.3778,4154.5,4153.9,0.29]
[1759153684062,0.15681194,4155.2,4153.9,0.29]
[1759153684063,0.00271194,4155.2,4154.6,0.43304]
[1759153684271,0.38051194,4155.2,4154.7,0.286]
[1759153684559,0.00271194,4155.2,4155.1,0.3886]
[1759153685162,0.43289,4156.2,4155.8,0.43292]
[1759153685463,0.43289,4156.2,4155.6,0.43294]
[1759153685666,0.3778,4157.0,4155.7,0.3886]
[1759153685864,0.43291,4156.0,4155.7,0.4476]
[1759153686055,1.08208,4156.7,4154.7,0.3886]
[1759153686259,0.43295,4155.6,4154.8,0.29]
[1759153686467,0.00298756,4156.7,4155.0,0.3886]
[1759153686767,0.43288,4156.3,4155.3,0.3886]
[1759153686965,0.43289,4156.2,4155.6,0.43294]
[1759153687166,0.43291,4156.0,4155.7,1.11153]
[1759153687472,0.43292,4155.9,4155.7,0.29]
[1759153687660,0.3778,4156.4,4155.1,0.3886]
[1759153687859,0.43292,4155.9,4155.4,0.43296]
[1759153688060,0.38078756,4156.7,4155.2,0.222]
[1759153688061,1.08212,4156.6,4155.2,0.222]
[1759153688266,0.43286,4156.5,4156.0,0.8215]
[1759153688468,0.43582756,4156.7,4156.3,0.43287]
[1759153688762,0.38078756,4156.7,4155.3,0.3886]
[1759153688969,0.00298756,4156.7,4156.3,0.82147]
[1759153689267,0.43288,4156.3,4156.1,0.29]
[1759153689465,0.43288,4156.3,4156.2,0.29]
[1759153689674,0.81068,4156.3,4156.2,0.29]
[1759153689867,0.3778,4156.3,4155.4,0.43296]
[1759153690060,0.3778,4156.3,4155.2,0.1528]
[1759153690061,0.43292,4155.9,4155.0,35.0336]
[1759153690269,0.43292,4155.9,4155.3,0.3886]
[1759153690568,0.3778,4156.3,4155.6,0.43295]
[1759153690759,0.43292,4155.9,4155.5,0.82155]
[1759153690964,0.43293,4155.8,4155.6,0.43294]
[1759153691164,0.3778,4156.3,4155.5,0.3886]
[1759153691362,0.38078756,4156.7,4155.5,0.3886]
[1759153691564,0.00298756,4156.7,4156.5,0.43285]
[1759153691965,0.00298756,4156.7,4156.6,0.289]
[1759153692179,0.00298756,4156.7,4156.6,0.6776]
[1759153692671,0.43286,4156.5,4155.7,0.62023984]
[1759153692865,0.00298756,4156.7,4155.7,0.3886]
[1759153693171,0.38078756,4156.7,4155.6,0.43294]
[1759153693469,0.1541,4156.6,4155.2,0.1528]
[1759153693674,0.38078756,4156.7,4155.9,0.43291]
[1759153693870,0.43286,4156.5,4155.6,1.08237]
[1759153694171,0.43582756,4156.7,4156.4,0.43286]
[1759153694368,0.43582756,4156.7,4156.5,0.289]
[1759153694569,0.43581756,4156.7,4156.6,0.289]
[1759153694766,0.00298756,4156.7,4156.6,0.671]
[1759153695168,0.43288,4156.3,4155.9,0.43291]
[1759153695375,0.00298756,4156.7,4156.0,0.289]
[1759153695571,0.43288,4156.3,4156.1,0.43289]
[1759153695764,0.00298756,4156.7,4156.6,0.382]
[1759153696175,0.00298756,4156.7,4156.6,0.67]
[1759153696866,1.08164,4158.5,4157.1,0.382]
[1759153697172,1.08165,4158.4,4156.8,0.1449]
[1759153697372,0.43276,4157.5,4156.9,0.671]
[1759153697570,1.44196,4157.6,4156.7,0.81483]
[1759153697883,1.44196,4157.6,4156.2,0.97815012]
[1759153697884,0.43285,4156.6,4156.2,0.382]
[1759153698071,0.00271129,4157.6,4156.7,0.382]
[1759153698270,0.00271129,4157.6,4157.4,0.43276]
[1759153698570,0.43276,4157.4,4157.2,0.43277]
[1759153698872,0.43281,4157.0,4156.8,0.43282]
[1759153699073,0.3601,4157.2,4156.9,0.289]
[1759153699272,0.43284,4156.7,4156.5,0.43285]
[1759153699463,0.43284,4156.7,4155.9,1.22717]
[1759153699464,0.43284,4156.7,4156.1,0.382]
[1759153699667,0.43284,4156.6,4156.4,0.43286]
[1759153699871,0.00271129,4157.6,4157.5,0.382]
[1759153700071,0.43277,4157.4,4156.6,1.00248254]
[1759153700374,0.00271129,4157.6,4156.9,0.43281]
[1759153700375,0.4328,4157.1,4156.9,0.43281]
[1759153700872,0.00271129,4157.6,4157.5,0.43275]
[1759153701070,0.00271129,4157.6,4157.5,0.81475]
[1759153701274,0.36281129,4157.6,4157.3,0.43277]
[1759153701468,0.36281129,4157.6,4156.8,0.382]
[1759153701469,0.43279,4157.2,4157.0,0.4328]
[1759153701771,0.3601,4157.2,4156.6,0.43284]
[1759153701975,0.43285,4156.6,4156.4,0.43286]
[1759153702176,0.43282,4156.8,4156.6,0.43284]
[1759153702376,0.43289,4156.2,4156.1,0.43289]
[1759153702568,0.3601,4156.9,4156.1,0.289]
[1759153702768,0.00271129,4157.6,4156.1,0.289]
[1759153702769,0.3601,4157.3,4156.2,1.22712]
[1759153703070,0.43277,4157.3,4157.0,0.4328]
[1759153703271,0.3601,4157.3,4157.0,0.4328]
[1759153703472,0.3601,4157.3,4157.0,0.382]
[1759153703770,0.00271129,4157.6,4157.2,0.43277]
[1759153703771,0.43277,4157.4,4157.2,0.43277]
[1759153703971,0.79287,4157.4,4157.2,0.72178]
[1759153704275,0.00271129,4157.6,4157.2,0.289]
[1759153704276,0.79067,4157.3,4157.2,0.289]
[1759153704678,0.43277,4157.4,4157.2,0.289]
[1759153704873,0.00271129,4157.6,4157.2,0.289]
[1759153705177,0.43275,4157.5,4157.3,0.43277]
[1759153705368,0.36061129,4157.6,4157.3,0.43277]
[1759153705770,0.00271129,4157.6,4157.3,0.43277]
[1759153705964,0.3579,4157.5,4157.3,0.43277]
[1759153706370,0.43277,4157.3,4157.1,0.43278]
[1759153706776,0.43277,4157.3,4157.2,0.288]
[1759153706977,0.36061129,4157.6,4156.7,0.382]
[1759153707278,0.36061129,4157.6,4156.4,0.62183597]
[1759153707279,0.00271129,4157.6,4157.5,0.3567]
[1759153707780,0.00271129,4157.6,4157.5,5.7963]
[1759153708366,0.43264,4158.6,4158.5,0.43265]
[1759153708682,0.43269,4158.1,4157.5,0.77343597]
[1759153708971,0.4327,4158.0,4157.9,0.4327]
[1759153709174,0.43265,4158.5,4158.4,0.43265]
[1759153709376,0.00266371,4158.5,4158.4,0.00294994]
[1759153709580,0.79321371,4158.5,4158.4,0.00294994]
[1759153709776,0.43531371,4158.5,4158.4,0.62664994]
[1759153710182,0.79321371,4158.5,4158.4,0.28994994]
[1759153710384,0.79321371,4158.5,4158.4,0.00294994]
[1759153710574,5.93521371,4158.5,4158.4,0.00294994]
[1759153710975,0.43531371,4158.5,4158.4,0.35964994]
[1759153711471,0.00266371,4158.5,4158.4,0.35964994]
[1759153711678,0.142,4159.5,4158.7,0.43262]
[1759153711976,0.3579,4159.6,4158.6,0.3567]
[1759153712169,1.22325,4160.0,4159.1,0.3567]
[1759153712378,0.43257,4159.3,4159.2,0.287]
[1759153712669,0.00212273,4159.3,4159.2,0.287]
[1759153712876,0.79049,4159.0,4158.8,0.62072525]
[1759153713073,0.43261,4158.8,4158.7,0.62072525]
[1759153713271,0.43261,4158.8,4158.6,0.62072525]
[1759153713482,0.79054,4158.6,4158.4,0.62367519]
[1759153713784,0.79054,4158.6,4158.5,0.286]
[1759153714084,0.79054,4158.6,4158.4,0.00294994]
[1759153714085,0.3579,4158.5,4158.4,0.00294994]
[1759153714280,0.4999,4158.5,4158.4,0.28894994]
[1759153714576,5.4999,4158.5,4158.4,0.00294994]
[1759153714986,5.4999,4158.5,4157.2,1.24987519]
[1759153714987,0.79059,4158.0,4157.9,0.286]
[1759153715377,0.93259,4158.0,4157.9,0.286]
[1759153715881,0.3579,4157.3,4157.2,0.62072525]
[1759153716082,0.43273,4157.7,4157.3,0.3567]
[1759153716380,0.43264,4158.5,4157.7,0.3567]
[1759153716584,0.43267,4158.2,4158.0,0.62348114]
[1759153716780,0.43267,4158.2,4158.1,0.6427]
[1759153717178,0.3579,4158.7,4158.1,1.69885114]
[1759153717377,1.08145,4159.1,4158.1,1.69885114]
[1759153717378,0.43264,4158.6,4158.2,0.62343535]
[1759153717577,0.43265,4158.4,4158.2,0.62343535]
[1759153717777,0.43265,4158.4,4158.3,0.3567]
[1759153717979,0.43264,4158.5,4158.4,0.3567]
[1759153718179,0.3579,4159.2,4158.2,0.62343535]
[1759153718373,0.3579,4159.2,4158.4,0.3567]
[1759153718685,0.3579,4159.2,4158.3,0.285]
[1759153718885,0.79053,4158.6,4158.3,0.90843535]
[1759153719087,0.43264,4158.5,4158.3,0.62343535]
[1759153719280,0.43263,4158.6,4158.4,0.90843535]
[1759153719583,0.43263,4158.6,4158.5,0.3567]
[1759153719881,0.43262,4158.7,4158.5,0.285]
[1759153720388,0.3579,4158.6,4158.5,0.285]
[1759153720882,1.08352273,4159.3,4158.9,0.43259]
[1759153720883,0.00212273,4159.3,4158.9,0.43259]
[1759153721185,0.00212273,4159.3,4159.2,0.98062132]
[1759153721379,0.00212273,4159.3,4159.2,1.26562132]
[1759153722290,0.00212273,4159.3,4159.2,5.6417]
[1759153722785,0.00212273,4159.3,4159.2,0.6407]
[1759153722983,0.00212273,4159.3,4159.2,5.6407]
[1759153723784,0.4999,4161.0,4159.9,0.3567]
[1759153723991,0.43242,4160.7,4160.2,0.43245]
[1759153724289,0.36401359,4160.5,4160.4,0.3567]
[1759153724484,1.35837463,4160.5,4160.4,0.3567]
[1759153724786,2.36125614,4160.5,4160.4,0.69378413]
[1759153725286,3.15158614,4160.5,4160.4,0.62108413]
[1759153725484,8.15158614,4160.5,4160.4,0.62108413]
[1759153725786,8.15158614,4160.5,4159.3,0.284]
[1759153725787,1.08124,4159.9,4159.3,0.284]
[1759153725978,0.3579,4160.1,4159.4,0.3567]
[1759153726177,0.3579,4160.1,4159.7,0.62273565]
[1759153726379,0.3579,4159.8,4159.7,0.62273565]
[1759153726688,0.43257,4159.1,4158.9,0.62273565]
[1759153726882,0.3579,4159.0,4158.9,0.62481577]
[1759153727076,0.43257,4159.1,4158.9,0.28708012]
[1759153727290,0.79047,4159.1,4159.0,0.285]
[1759153727588,0.4999,4159.0,4158.9,0.00208012]
[1759153727981,5.4999,4159.0,4158.9,0.00208012]
[1759153728194,0.3579,4158.4,4158.3,0.285]
[1759153728402,0.43268,4158.1,4158.0,0.62273565]
[1759153728593,0.79064,4157.5,4157.4,0.62273565]
[1759153728890,2.35837463,4157.5,4157.4,0.90673565]
[1759153729092,2.36136761,4157.5,4157.4,1.26645238]
[1759153729288,2.36136761,4157.5,4157.4,0.62575238]
[1759153729492,2.36136761,4157.5,4157.4,0.90975238]
[1759153729685,2.71926761,4157.5,4157.4,0.62575238]
[1759153729884,2.36136761,4157.5,4157.4,0.64371673]
[1759153730181,2.36136761,4157.5,4157.4,0.28701673]
[1759153730390,2.71926761,4157.5,4157.4,0.00301673]
[1759153730680,2.71926761,4157.5,4157.4,0.28701673]
[1759153730884,2.36136761,4157.5,4157.4,5.64371673]
[1759153731085,2.36136761,4157.5,4157.4,6.47469911]
[1759153731683,2.36136761,4157.5,4157.4,5.64371673]
[1759153732189,2.36136761,4157.5,4157.4,6.47469911]
[1759153732584,0.3579,4158.4,4158.0,0.43269]
[1759153732780,0.142,4159.0,4157.4,6.11799911]
[1759153732781,0.43266,4158.3,4158.2,0.3567]
[1759153732992,1.58138,4159.0,4158.2,0.3567]
[1759153732993,0.43265,4158.4,4158.2,0.3567]
[1759153733294,0.4999,4158.5,4157.9,0.62355674]
[1759153733601,0.43271,4157.8,4157.6,0.62355674]
[1759153733886,0.50266631,4158.5,4157.7,0.283]
[1759153734088,0.50266631,4158.5,4157.5,0.62355674]
[1759153734295,0.78723,4157.6,4157.5,0.62385671]
[1759153734489,0.3545,4157.5,4157.4,0.00301673]
[1759153735591,5.4974,4157.5,4157.4,0.00301673]
[1759153736187,0.4974,4157.5,4157.4,0.00301673]
[1759153736692,0.3545,4157.5,4157.4,0.00301673]
[1759153736892,0.4974,4157.5,4157.4,0.00301673]
[1759153737382,5.4974,4157.5,4157.4,0.00301673]
[1759153737984,0.3545,4157.5,4157.4,0.00301673]
[1759153738388,0.4974,4157.5,4157.4,0.00301673]
[1759153738595,0.3545,4156.8,4156.4,0.62385671]
[1759153738790,0.43286,4156.3,4156.2,0.62385671]
[1759153739091,0.1429,4156.0,4155.9,0.282]
[1759153739389,0.3545,4157.4,4156.0,0.3599]
[1759153739690,0.3545,4157.0,4156.5,0.43284]
[1759153739900,0.43277,4157.2,4156.6,0.71482]
[1759153740098,0.4974,4157.5,4156.6,0.282]
[1759153740288,0.43275,4157.4,4156.8,0.43281]
[1759153740489,0.43276,4157.3,4156.8,0.43281]
[1759153740787,0.43279,4157.1,4156.9,0.3599]
[1759153740987,0.43279,4157.0,4156.8,0.024]
[1759153741288,0.43279,4157.0,4156.8,0.3839]
[1759153741491,0.43277,4157.2,4156.8,0.024]
[1759153741785,0.3545,4156.9,4156.8,0.024]
[1759153742289,0.43288,4156.1,4156.0,0.0017691]
[1759153742497,0.78738,4156.1,4156.0,0.0017691]
[1759153743792,0.3545,4156.9,4156.0,5.0017691]
[1759153744096,0.3545,4156.9,4156.3,0.3599]
[1759153744296,0.43284,4156.5,4156.4,0.281]
[1759153745402,0.43283,4156.7,4156.5,0.3599]
[1759153745704,0.43279,4157.0,4156.7,0.79272]
[1759153746002,0.43278,4157.2,4156.8,0.79271]
[1759153746202,0.43278,4157.2,4156.9,0.3599]
[1759153746500,0.78726,4157.4,4157.0,0.6409]
[1759153746701,0.1429,4158.0,4157.2,0.43276]
[1759153747001,0.78727,4157.2,4157.0,0.281]
[1759153747690,0.43279,4157.0,4156.8,0.62330227]
[1759153747995,0.3545,4156.7,4156.5,0.62330227]
[1759153748305,0.78735,4156.5,4156.3,0.62330227]
[1759153748495,0.78735,4156.5,4156.4,0.28]
[1759153749501,0.3545,4156.5,4156.4,0.28]
[1759153749690,0.1429,4157.5,4156.6,0.3599]
[1759153749895,0.78725,4157.4,4157.1,0.43278]
[1759153750103,0.3545,4157.9,4157.2,0.28]
[1759153750295,0.43275,4157.5,4157.2,0.71276]
[1759153750491,0.43273,4157.7,4157.4,0.43275]
[1759153750801,0.3545,4157.3,4157.2,0.28]
[1759153751893,0.43284,4156.6,4156.3,1.05616227]
[1759153752101,0.3545,4156.3,4156.2,1.05617227]
[1759153752299,0.3545,4156.3,4156.2,0.71187]
[1759153752698,0.3545,4156.5,4156.3,0.43286]
[1759153752907,0.3545,4156.3,4156.2,0.279]
[1759153753295,0.43288,4156.2,4156.0,0.0017691]
[1759153753497,0.3545,4156.1,4156.0,0.0017691]
[1759153753800,0.43293,4155.7,4155.1,0.90230227]
[1759153753991,0.3545,4155.8,4155.1,0.279]
[1759153753992,0.78748,4155.2,4155.1,0.279]
[1759153754400,0.3545,4155.2,4155.1,0.279]
[1759153754800,0.35632979,4155.2,4155.1,0.28091511]
[1759153754998,0.00182979,4155.2,4155.1,1.07380511]
[1759153755203,0.00182979,4155.2,4155.1,0.71390511]
[1759153755403,0.35632979,4155.2,4155.1,0.28091511]
[1759153756006,0.35632979,4155.2,4155.1,0.90485127]
[1759153756204,0.35632979,4155.2,4155.1,0.28091511]
[1759153757109,5.35632979,4155.2,4155.1,1.511e-05]
[1759153757314,0.93045,4154.5,4154.4,0.024]
[1759153757513,0.1429,4154.0,4153.6,0.62393616]
[1759153757707,0.3545,4153.6,4153.5,0.90193616]
[1759153757918,0.3545,4154.3,4153.6,0.3599]
[1759153758108,0.3545,4154.4,4153.6,0.98428286]
[1759153758411,0.3545,4153.7,4153.6,0.62643188]
[1759153758609,0.3545,4153.7,4153.6,0.00204902]
[1759153758805,0.43302,4154.6,4153.7,0.3599]
[1759153759005,0.3545,4154.4,4154.2,0.43306]
[1759153759210,0.3545,4154.4,4154.0,0.62379316]
[1759153759211,0.433,4154.8,4154.4,0.43303]
[1759153759406,0.1429,4155.0,4154.4,0.3599]
[1759153759710,0.43302,4154.6,4154.3,0.43304]
[1759153760215,0.3545,4154.5,4154.3,0.43304]
[1759153760508,0.1429,4155.0,4154.6,0.43301]
[1759153760703,0.433,4154.8,4154.4,0.43303]
[1759153760910,0.3565,4154.5,4154.2,0.43305]
[1759153761102,0.43303,4154.5,4154.1,0.278]
[1759153761304,0.1429,4155.0,4154.1,0.278]
[1759153761613,0.43293,4155.4,4155.0,0.43297]
[1759153761911,0.43289,4155.8,4155.1,0.3549]
[1759153762115,0.3565,4156.1,4155.1,0.3549]
[1759153762317,1.08203,4156.6,4155.0,0.97300899]
[1759153762509,0.43287,4156.0,4155.7,0.43289]
[1759153762710,0.43287,4156.0,4155.7,0.71089]
[1759153762909,0.3565,4155.8,4155.7,0.71089]
[1759153763205,0.35938197,4155.8,4155.7,0.278]
[1759153763710,0.00288197,4155.8,4155.3,0.62153734]
[1759153763907,0.3565,4155.5,4155.4,0.277]
[1759153764119,0.1462,4155.5,4154.9,0.62153734]
[1759153764416,0.368,4155.4,4154.9,0.277]
[1759153764610,0.1462,4155.5,4154.9,0.70998]
[1759153764809,0.43297,4155.1,4154.9,0.70998]
[1759153765012,0.368,4155.0,4154.9,0.70998]
[1759153765211,0.1462,4155.5,4155.3,0.43294]
[1759153765212,0.43292,4155.5,4155.3,0.43294]
[1759153765423,0.00288197,4155.8,4155.7,0.4329]
[1759153765616,0.00288197,4155.8,4155.7,0.7895]
[1759153765810,0.37088197,4155.8,4155.5,0.277]
[1759153766010,0.37088197,4155.8,4155.5,0.6336]
[1759153766412,0.80377197,4155.8,4155.6,0.43291]
[1759153766610,0.37088197,4155.8,4155.6,0.43291]
[1759153766815,0.00288197,4155.8,4155.6,0.43291]
[1759153767012,0.00288197,4155.8,4155.7,0.3566]
[1759153767811,0.00288197,4155.8,4155.4,0.62153734]
[1759153768119,0.00288197,4155.8,4155.3,0.3566]
[1759153768120,0.8009,4155.7,4155.5,1.33044734]
[1759153768318,0.368,4155.6,4155.5,0.62153734]
[1759153768515,0.368,4155.4,4155.3,0.62153734]
[1759153768715,0.57912,4155.5,4155.0,1.26437899]
[1759153768716,0.43296,4155.1,4155.0,0.62153734]
[1759153769013,0.80102,4154.6,4154.5,0.62153734]
[1759153769219,0.80102,4154.6,4154.5,0.276]
[1759153769414,1.08239,4155.2,4154.2,0.62153734]
[1759153769415,0.368,4154.3,4154.2,0.62153734]
[1759153769620,0.368,4154.3,4154.2,0.89753734]
[1759153769817,0.43306,4154.2,4154.0,0.89753734]
[1759153770020,0.368,4154.1,4154.0,0.89753734]
[1759153770220,0.368,4154.1,4154.0,0.276]
[1759153770721,42.02866,4155.0,4154.0,0.276]
[1759153770917,0.368,4154.3,4154.0,0.89753734]
[1759153771122,0.368,4154.1,4154.0,0.89753734]
[1759153771323,0.368,4154.1,4154.0,0.276]
[1759153772220,0.368,4154.9,4154.7,0.433]
[1759153772421,0.368,4155.4,4154.8,0.89845264]
[1759153772619,0.368,4155.4,4154.6,0.3566]
[1759153772620,0.368,4154.9,4154.6,0.62345264]
[1759153772822,0.368,4154.8,4154.7,0.276]
[1759153773024,0.801,4154.7,4154.6,0.62345264]
[1759153773223,0.368,4154.7,4154.5,1.41307264]
[1759153773517,0.368,4154.7,4154.6,0.276]
[1759153773923,0.433,4154.8,4154.6,1.06561]
[1759153774120,0.43299,4154.9,4154.8,0.3566]
[1759153774320,0.1462,4155.0,4154.6,0.276]
[1759153774523,0.43303,4154.5,4154.3,0.62345264]
[1759153774734,0.43303,4154.5,4154.4,0.275]
[1759153775019,1.08249,4154.9,4154.1,0.62345264]
[1759153775222,0.43308,4154.0,4153.9,0.85540899]
[1759153775527,0.368,4154.0,4153.9,0.64754831]
[1759153775716,0.368,4154.0,4153.9,0.024]
[1759153775911,0.5142,4154.0,4153.9,0.024]
[1759153776323,0.368,4153.9,4153.6,0.27704902]
[1759153776524,0.43311,4153.7,4153.6,0.27704902]
[1759153776720,0.80111,4153.7,4153.6,0.27704902]
[1759153776922,0.80111,4153.7,4153.6,0.00204902]
[1759153777119,5.80111,4153.7,4153.6,0.00204902]
[1759153777320,5.80111,4153.7,4153.1,0.275]
[1759153777321,0.1462,4153.0,4152.8,0.62354831]
[1759153777625,0.1462,4154.0,4152.9,0.3566]
[1759153777626,0.5142,4153.5,4152.9,0.3566]
[1759153777828,0.4332,4152.9,4152.7,0.98014831]
[1759153778126,0.80121,4152.7,4152.6,0.62354831]
[1759153778323,0.00302957,4152.7,4152.6,1.41568614]
[1759153778524,0.00302957,4152.7,4152.6,0.79213783]
[1759153778825,0.368,4153.5,4153.1,0.43316]
[1759153779121,0.368,4152.9,4152.8,0.62372622]
[1759153779334,0.8012,4152.8,4152.6,0.62604405]
[1759153779519,0.8012,4152.8,4152.6,0.00231783]
[1759153779716,0.368,4152.7,4152.6,0.00231783]
[1759153779926,0.368,4152.7,4152.6,0.27731783]
[1759153780325,0.368,4152.7,4152.6,0.00231783]
[1759153780531,0.00312416,4152.8,4152.6,0.27731783]
[1759153780736,0.00312416,4152.8,4152.7,0.3566]
[1759153780928,0.1462,4154.5,4153.6,0.43311]
[1759153781233,0.368,4153.8,4153.7,0.275]
[1759153781429,0.368,4153.6,4153.4,1.05662115]
[1759153781626,0.4331,4153.8,4153.5,0.275]
[1759153781826,0.00252314,4153.8,4153.6,0.78972]
[1759153782222,0.00252314,4153.8,4153.7,0.3566]
[1759153782422,0.368,4154.9,4154.0,0.43307]
[1759153782619,0.80107,4154.1,4154.0,0.62401315]
[1759153782931,0.368,4154.0,4153.9,0.274]
[1759153783336,0.37002658,4154.0,4153.9,0.274]
[1759153783727,0.43311,4153.7,4153.6,0.62401315]
[1759153784032,0.4331,4153.8,4153.6,1.25461315]
[1759153784531,0.4331,4153.8,4153.7,0.274]
[1759153784725,0.00202658,4154.0,4153.7,1.0637]
[1759153784926,0.00202658,4154.0,4153.9,0.3566]
[1759153785226,0.80109,4153.9,4153.8,0.62401315]
[1759153785419,0.80109,4153.9,4153.8,0.274]
[1759153785626,0.368,4153.9,4153.8,0.274]
[1759153785931,0.4331,4153.8,4153.6,0.89801315]
[1759153786135,0.368,4153.7,4153.6,0.62401315]
[1759153786337,0.368,4153.7,4153.6,0.274]
[1759153786833,0.4331,4153.8,4153.6,0.6306]
[1759153787035,1.08262,4154.4,4153.7,0.3566]
[1759153787437,0.274,4155.2,4153.7,0.3566]
[1759153787734,0.27698959,4155.2,4153.7,0.3566]
[1759153788136,0.27698959,4155.2,4153.5,0.1466]
[1759153789233,0.27698959,4155.2,4153.7,0.3566]
[1759153789539,0.03598959,4155.2,4153.7,0.3566]
[1759153789836,0.03598959,4155.2,4153.8,0.7897]
[1759153790030,0.00298959,4155.2,4153.8,0.3566]
[1759153790236,40.8,4155.1,4154.1,0.3566]
[1759153790425,40.8,4155.1,4154.0,0.4206]
[1759153790632,40.8,4155.1,4154.1,0.3566]
[1759153793439,40.8,4155.1,4154.0,0.1466]
[1759153793636,40.8,4155.1,4153.7,0.3566]
[1759153793942,0.4725,4155.0,4153.7,0.3566]
[1759153794442,0.315,4154.9,4153.7,0.5295]
[1759153794738,0.1575,4155.0,4153.7,0.5295]
[1759153794937,0.315,4154.9,4153.6,0.024]
[1759153795234,0.315,4154.9,4153.7,0.5295]
[1759153795836,0.315,4154.9,4153.7,0.8035]
[1759153796143,0.315,4155.0,4153.7,0.5295]
[1759153796944,0.315,4155.0,4153.7,1.15351315]
[1759153797143,0.315,4155.0,4153.8,0.62401315]
[1759153797344,0.315,4155.0,4154.0,0.2142]
[1759153797635,0.315,4155.0,4154.1,0.5295]
[1759153798635,40.8,4155.1,4154.3,0.96254]
[1759153798840,40.8,4155.1,4154.6,0.5295]
[1759153799040,0.00298959,4155.2,4155.1,0.5295]
[1759153799637,0.00298959,4155.2,4155.1,1.15351315]
[1759153799839,0.00298959,4155.2,4155.1,0.5295]
[1759153800039,0.315,4156.5,4155.2,0.43295]
[1759153800337,0.315,4156.5,4155.1,0.5295]
[1759153800338,0.315,4157.1,4155.5,0.2142]
[1759153800542,0.315,4157.8,4156.5,0.2142]
[1759153800742,0.315,4157.8,4156.6,0.5295]
[1759153800941,0.315,4157.8,4156.5,0.2142]
[1759153801243,0.099,4157.9,4156.7,1.1561301]
[1759153801244,0.51444573,4156.8,4156.7,1.1561301]
[1759153801443,0.51444573,4156.8,4156.7,5.5295]
[1759153801644,0.274,4158.6,4156.7,5.5295]
[1759153801645,0.274,4158.6,4156.8,0.5295]
[1759153801946,0.315,4158.5,4157.0,0.7437]
[1759153802148,40.8,4158.4,4157.1,0.5295]
[1759153802641,40.8020059,4158.4,4157.1,0.5295]
[1759153803040,40.8020059,4158.4,4156.8,0.6266301]
[1759153803041,0.315,4158.3,4156.8,0.6266301]
[1759153803348,0.1575,4158.0,4156.5,0.74621276]
[1759153803642,0.315,4157.9,4156.5,0.74621276]
[1759153803940,0.1575,4158.0,4156.5,0.00251276]
[1759153804142,0.315,4157.9,4156.5,0.00251276]
[1759153804944,5.315,4157.9,4156.5,0.00251276]
[1759153805644,5.315,4157.9,4155.7,0.5295]
[1759153805843,5.315,4157.9,4154.8,1.2469623]
[1759153805844,0.315,4157.6,4154.7,0.5295]
[1759153806039,0.315,4157.4,4154.7,0.5295]
[1759153806845,0.315,4157.4,4154.7,0.53196688]
[1759153807040,2.59,4157.4,4154.7,0.53196688]
[1759153807244,0.315,4157.2,4154.7,0.53196688]
[1759153807546,0.1575,4157.0,4154.7,0.53196688]
[1759153807746,0.315,4156.3,4154.7,0.53196688]
[1759153807952,0.274,4156.2,4154.7,0.53196688]